bitfinex/quotes_ETHUSD_20230903
["timestamp","ask_amount","ask_price","bid_price","bid_amount"]
[1693770135554,2.50977266,1639.5,1639.3,1.59530478]
[1693770135754,1.553,1639.4,1639.3,1.59530478]
[1693770136076,2.74354357,1639.4,1639.3,1.59530478]
[1693770136376,2.74354357,1639.4,1639.3,1.69861897]
[1693770136573,2.74721439,1639.4,1639.3,1.69861897]
[1693770137143,2.74721439,1639.4,1639.3,0.63854858]
[1693770137349,2.74721439,1639.4,1639.2,1.06007039]
[1693770137653,2.74721439,1639.4,1639.1,1.59530478]
[1693770137972,4.64921439,1639.4,1639.1,1.59530478]
[1693770138379,4.64921439,1639.4,1639.2,1.06013702]
[1693770138575,4.64921439,1639.4,1639.1,1.59530478]
[1693770138875,4.64921439,1639.4,1639.1,1.69868009]
[1693770141047,3.71643583,1639.4,1639.0,0.63854858]
[1693770141281,1.553,1639.1,1639.0,1.0601628]
[1693770141876,1.553,1639.1,1638.9,1.69871138]
[1693770142080,1.553,1639.0,1638.8,3.24160478]
[1693770142258,1.553,1639.0,1638.9,1.06023913]
[1693770144378,1.553,1639.0,1638.8,0.67790797]
[1693770144597,1.553,1639.1,1638.7,2.90034858]
[1693770144772,1.553,1639.1,1638.8,1.06024737]
[1693770145697,0.00366658,1639.0,1638.8,1.06024737]
[1693770147900,0.00366658,1639.0,1638.7,3.8276]
[1693770148796,1.553,1638.9,1638.7,3.8276]
[1693770149105,1.553,1638.8,1638.7,1.5658]
[1693770149261,1.553,1638.8,1638.5,5.71494858]
[1693770149468,1.553,1638.8,1638.6,1.63183395]
[1693770149669,0.00364899,1638.8,1638.6,0.57149486]
[1693770149977,1.20215599,1638.7,1638.6,0.57149486]
[1693770150189,1.20215599,1638.7,1638.6,1.63181411]
[1693770150886,1.553,1638.9,1638.6,1.63181411]
[1693770151086,1.553,1638.9,1638.6,0.57149486]
[1693770151497,1.20236629,1638.8,1638.6,0.57149486]
[1693770151709,1.20601528,1638.8,1638.6,0.57149486]
[1693770152016,0.00364899,1638.8,1638.6,0.57149486]
[1693770152516,1.553,1638.9,1638.6,0.57149486]
[1693770153018,1.553,1638.9,1638.6,2.27036228]
[1693770153222,1.553,1638.9,1638.7,1.06031884]
[1693770153736,0.00364366,1638.8,1638.7,1.06031884]
[1693770153900,1.2057326,1638.8,1638.7,1.06031884]
[1693770157227,1.2057326,1638.8,1638.7,0.63854858]
[1693770157525,0.00364366,1638.8,1638.7,2.02157927]
[1693770157831,1.10173002,1638.8,1638.7,2.02157927]
[1693770158025,1.10173002,1638.8,1638.7,4.09387927]
[1693770158236,3.4463,1639.1,1638.7,2.02157927]
[1693770158528,3.4463,1639.1,1638.8,1.06031884]
[1693770158729,0.00366125,1639.0,1638.8,1.06031884]
[1693770161623,1.10220329,1638.9,1638.8,1.06031884]
[1693770162637,1.10586041,1638.9,1638.8,1.06031884]
[1693770176237,1.10586041,1638.9,1638.8,1.46970677]
[1693770182468,1.10586041,1638.9,1638.8,1.06031884]
[1693770186040,1.10586041,1638.9,1638.7,2.0723]
[1693770186248,2.65886041,1638.9,1638.6,3.77020478]
[1693770186458,2.65886041,1638.9,1638.7,1.06034085]
[1693770187175,2.65886041,1638.9,1638.7,1.69888943]
[1693770191385,2.65886041,1638.9,1638.7,1.06034085]
[1693770191593,2.65886041,1638.9,1638.6,3.77020478]
[1693770191776,2.65886041,1638.9,1638.7,1.06033831]
[1693770201197,1.55829645,1638.9,1638.6,2.1749]
[1693770201369,1.55829645,1638.9,1638.4,3.88110478]
[1693770201370,1.553,1638.7,1638.4,3.88110478]
[1693770201691,1.553,1638.7,1638.5,1.06047741]
[1693770202674,0.00361272,1638.6,1638.5,1.06047741]
[1693770203080,0.00361272,1638.6,1638.5,1.45896001]
[1693770203701,4.61079347,1638.8,1638.5,1.45896001]
[1693770203906,4.61079347,1638.8,1638.4,2.92434858]
[1693770204194,4.61079347,1638.8,1638.5,1.06045586]
[1693770204600,0.00362352,1638.7,1638.5,1.06045586]
[1693770209911,1.30083213,1638.6,1638.5,1.06045586]
[1693770210680,1.30444218,1638.6,1638.5,1.06045586]
[1693770210875,1.30444218,1638.6,1638.5,1.4589363]
[1693770217294,1.30444218,1638.6,1638.5,1.06045586]
[1693770220916,1.30444218,1638.6,1638.3,0.63854858]
[1693770221118,1.30444218,1638.6,1638.3,1.06050269]
[1693770221642,3.12484218,1638.6,1638.3,1.06050269]
[1693770225213,2.68943261,1638.6,1638.3,1.06050269]
[1693770230859,4.24243261,1638.6,1638.3,1.06050269]
[1693770233842,1.553,1638.5,1638.3,1.06050269]
[1693770234047,3.11367587,1638.6,1638.1,0.63854858]
[1693770234048,1.553,1638.4,1638.1,0.63854858]
[1693770234253,1.553,1638.4,1638.1,1.69919642]
[1693770234664,0.00354414,1638.3,1638.1,1.69919642]
[1693770235645,1.553,1638.4,1638.1,1.69919642]
[1693770235844,1.553,1638.4,1638.1,2.65595262]
[1693770236076,1.553,1638.4,1638.2,1.06064784]
[1693770236247,1.553,1638.4,1638.1,1.59530478]
[1693770236447,1.553,1638.4,1638.1,3.39896464]
[1693770236772,0.00354681,1638.3,1638.2,1.06064189]
[1693770237864,1.553,1638.4,1638.2,1.06064189]
[1693770238769,0.00356844,1638.3,1638.2,1.69919047]
[1693770239847,1.553,1638.4,1638.2,1.69919047]
[1693770240078,0.86558535,1638.3,1638.2,1.69919047]
[1693770240278,0.86558535,1638.3,1638.2,2.25046693]
[1693770240481,1.553,1638.4,1638.2,2.25046693]
[1693770240686,1.553,1638.4,1638.3,1.06064189]
[1693770241183,1.553,1638.4,1638.2,1.69919047]
[1693770253160,3.2963,1638.5,1638.2,1.69919047]
[1693770255093,0.92761389,1638.4,1638.2,1.69919047]
[1693770259329,2.48061389,1638.4,1638.2,1.69919047]
[1693770260319,2.90300528,1638.4,1638.2,1.69919047]
[1693770265504,2.90300528,1638.4,1638.2,2.65594667]
[1693770266339,2.90300528,1638.4,1638.3,1.06064189]
[1693770266524,2.48061389,1638.4,1638.2,2.65594667]
[1693770266834,2.48061389,1638.4,1638.3,1.06064189]
[1693770267334,2.48061389,1638.4,1638.2,2.65594667]
[1693770267540,2.48061389,1638.4,1638.3,1.06064189]
[1693770267720,2.48061389,1638.4,1638.2,1.69919047]
[1693770267918,2.48061389,1638.4,1638.3,1.06064189]
[1693770268543,2.48061389,1638.4,1638.2,1.69919047]
[1693770269707,0.92761389,1638.4,1638.2,2.45425263]
[1693770269908,0.92761389,1638.4,1638.3,2.65594667]
[1693770270213,30.41,1638.8,1638.3,5.09925213]
[1693770270437,6.15623056,1638.7,1638.4,1.70106585]
[1693770270632,7.08578025,1638.7,1638.4,1.70106585]
[1693770270833,0.92954969,1638.7,1638.4,1.70106585]
[1693770272429,1.7639,1638.9,1638.4,1.70106585]
[1693770272630,6.15607272,1638.8,1638.4,1.70106585]
[1693770273221,1.7639,1638.9,1638.4,1.70106585]
[1693770273515,6.15607431,1638.8,1638.4,1.70106585]
[1693770274651,0.00346282,1638.7,1638.4,1.70106585]
[1693770282745,1.7639,1638.9,1638.4,3.36596585]
[1693770282948,1.7639,1638.9,1638.5,1.39723848]
[1693770283151,3.3169,1638.9,1638.5,0.33659659]
[1693770283369,3.3169,1638.9,1638.5,2.56539659]
[1693770283867,0.00346962,1638.8,1638.5,2.56539659]
[1693770284666,3.3169,1638.9,1638.5,2.56539659]
[1693770285166,0.92265665,1638.7,1638.5,2.56539659]
[1693770285355,3.3169,1638.9,1638.5,2.56539659]
[1693770285734,0.00345202,1638.6,1638.5,2.56539659]
[1693770285935,0.00345202,1638.6,1638.5,3.62585073]
[1693770286635,3.3169,1638.9,1638.5,3.62585073]
[1693770286837,3.3169,1638.9,1638.5,2.56539659]
[1693770287871,0.00347096,1638.8,1638.5,2.56539659]
[1693770288673,3.3169,1638.9,1638.5,2.56539659]
[1693770289681,0.00346696,1638.8,1638.5,2.56539659]
[1693770289981,0.00346696,1638.8,1638.5,5.64725063]
[1693770290146,0.00346696,1638.8,1638.6,1.62511652]
[1693770290474,0.00346696,1638.8,1638.6,0.56472506]
[1693770290779,30.41,1639.0,1638.6,0.56472506]
[1693770291873,0.00337909,1638.9,1638.6,0.56472506]
[1693770292275,0.00337909,1638.9,1638.6,1.62508164]
[1693770292480,0.00337909,1638.9,1638.6,0.56472506]
[1693770299987,0.87595456,1638.8,1638.6,0.56472506]
[1693770300286,0.00337909,1638.9,1638.6,0.56472506]
[1693770302253,0.00337909,1638.9,1638.7,6.08185404]
[1693770302596,0.00337909,1638.9,1638.8,1.6684315]
[1693770302754,32.2277,1639.2,1638.8,1.6684315]
[1693770302954,1.553,1639.1,1638.8,0.6081854]
[1693770303176,1.553,1639.1,1638.7,5.1155]
[1693770303484,1.553,1639.0,1638.7,2.1155]
[1693770303787,1.55613693,1639.0,1638.7,5.1155]
[1693770304177,1.55613693,1639.0,1638.7,8.1155]
[1693770304484,1.55613693,1639.0,1638.7,5.1155]
[1693770304685,1.55613693,1639.0,1638.8,0.51155]
[1693770305754,1.55613693,1639.0,1638.7,2.1155]
[1693770305959,1.553,1638.8,1638.5,2.83126776]
[1693770306189,1.553,1638.7,1638.6,1.06040632]
[1693770306554,1.553,1638.7,1638.5,0.63956776]
[1693770306782,1.55609318,1638.7,1638.5,0.63956776]
[1693770306979,1.55609318,1638.7,1638.4,1.5989194]
[1693770307290,0.00309318,1638.7,1638.4,2.65933772]
[1693770307700,0.00309318,1638.7,1638.4,2.6045034]
[1693770307873,0.00309318,1638.7,1638.3,2.74626776]
[1693770308198,0.00309318,1638.7,1638.4,1.06053122]
[1693770308793,9.73749,1638.9,1638.4,1.06053122]
[1693770309098,1.553,1638.5,1638.3,2.1067]
[1693770309396,1.553,1638.5,1638.4,1.06056156]
[1693770310779,1.55607957,1638.5,1638.4,1.06056059]
[1693770311404,1.55607957,1638.5,1638.3,2.1067]
[1693770311591,1.55607957,1638.5,1638.4,1.06055916]
[1693770313702,1.55607957,1638.5,1638.3,2.77726194]
[1693770313874,1.55607957,1638.5,1638.4,1.0605609]
[1693770314399,1.55607957,1638.5,1638.3,2.77726194]
[1693770314877,1.55607957,1638.5,1638.4,1.06057066]
[1693770315407,3.10907957,1638.5,1638.2,0.63956776]
[1693770315585,1.553,1638.3,1638.2,1.06060042]
[1693770316585,1.55606197,1638.3,1638.2,1.06060042]
[1693770317291,0.00306197,1638.3,1638.2,1.06060042]
[1693770317694,3.2955,1638.4,1638.2,1.06060042]
[1693770318677,0.00308759,1638.3,1638.2,1.06060042]
[1693770319818,3.2955,1638.4,1638.2,1.0606334]
[1693770320683,0.00308759,1638.3,1638.2,1.0606334]
[1693770321729,3.2955,1638.4,1638.2,1.0606334]
[1693770322639,0.0030834,1638.3,1638.2,1.0606334]
[1693770323735,3.2955,1638.4,1638.2,1.0606334]
[1693770324804,0.00307158,1638.3,1638.2,1.0606334]
[1693770325742,3.2955,1638.4,1638.2,1.0606334]
[1693770326630,0.00306891,1638.3,1638.2,1.0606334]
[1693770327816,3.2955,1638.4,1638.1,2.2579]
[1693770328221,3.2955,1638.4,1638.1,2.80232204]
[1693770328829,0.00309208,1638.3,1638.2,1.06061138]
[1693770329125,0.00309208,1638.3,1638.2,4.14246542]
[1693770329332,0.00309208,1638.3,1638.2,5.70146542]
[1693770329694,1.553,1638.6,1638.2,5.70146542]
[1693770330032,0.84633685,1638.5,1638.2,5.5551656]
[1693770330232,0.84633685,1638.5,1638.2,3.9961656]
[1693770330628,0.00310667,1638.4,1638.2,3.9961656]
[1693770336315,0.00310667,1638.4,1638.2,0.91431156]
[1693770336515,0.00310667,1638.4,1638.1,4.45543518]
[1693770336732,0.00310667,1638.4,1638.2,1.06061721]
[1693770339918,1.55610667,1638.4,1638.2,1.06061721]
[1693770340118,0.00310667,1638.4,1638.2,1.06061721]
[1693770343851,0.00310667,1638.4,1638.2,1.69915239]
[1693770344156,0.00310667,1638.4,1638.3,1.06061721]
[1693770344533,0.00310667,1638.4,1638.2,1.69915239]
[1693770344734,0.00310667,1638.4,1638.3,1.06061721]
[1693770345135,1.05164951,1638.4,1638.2,1.69915239]
[1693770345346,1.05164951,1638.4,1638.3,1.06061721]
[1693770345851,1.05164951,1638.4,1638.2,1.69915239]
[1693770346050,1.05164951,1638.4,1638.3,1.06061721]
[1693770346557,1.05164951,1638.4,1638.2,1.69915239]
[1693770349560,1.05164951,1638.4,1638.2,2.65695516]
[1693770351460,1.05164951,1638.4,1638.3,1.69915239]
[1693770351830,1.05164951,1638.4,1638.3,0.63853518]
[1693770355037,1.49045446,1638.4,1638.2,1.69915239]
[1693770355352,1.49045446,1638.4,1638.1,0.63853518]
[1693770355353,3.04345446,1638.4,1638.1,0.63853518]
[1693770357272,3.04345446,1638.4,1638.2,1.06074899]
[1693770357490,3.04345446,1638.4,1638.1,0.63853518]
[1693770357851,3.04345446,1638.4,1638.0,1.59633795]
[1693770358159,9.14697446,1638.4,1638.0,1.59633795]
[1693770358338,0.91469745,1638.3,1638.0,1.59633795]
[1693770358746,2.75196687,1638.3,1638.0,1.59633795]
[1693770358952,2.75196687,1638.3,1638.1,1.06074521]
[1693770359174,2.75196687,1638.3,1638.0,0.63853518]
[1693770360137,1.04737578,1638.2,1638.0,0.63853518]
[1693770360666,0.00474659,1638.1,1638.0,0.63853518]
[1693770361750,1.04737578,1638.2,1638.0,0.63853518]
[1693770362575,1.04737578,1638.2,1638.0,1.03195042]
[1693770362779,1.04737578,1638.2,1638.1,1.06074404]
[1693770362980,3.3401,1638.4,1638.1,1.06074404]
[1693770363585,3.3401,1638.4,1638.0,0.63853518]
[1693770363773,3.3401,1638.4,1638.0,1.69927384]
[1693770364775,0.00476942,1638.3,1638.0,1.69927384]
[1693770365635,3.3401,1638.4,1638.0,2.65707661]
[1693770365841,1.553,1638.4,1638.0,4.87927661]
[1693770366068,1.553,1638.4,1638.1,1.69927384]
[1693770366645,0.00476265,1638.3,1638.1,1.69927384]
[1693770367880,1.553,1638.4,1638.0,2.86073518]
[1693770368041,1.553,1638.4,1638.1,1.06075143]
[1693770368660,0.0047681,1638.3,1638.1,1.06075143]
[1693770369290,1.5577681,1638.3,1638.1,1.06075143]
[1693770369579,2.32389791,1638.3,1638.1,1.06075143]
[1693770372898,0.0047681,1638.3,1638.1,1.06075143]
[1693770373674,1.553,1638.4,1638.1,1.06075143]
[1693770374708,0.00478031,1638.3,1638.1,1.06075143]
[1693770374885,0.99859597,1638.3,1638.1,1.06075143]
[1693770398499,0.99859597,1638.3,1638.1,1.69928661]
[1693770399291,0.99859597,1638.3,1638.2,1.06073802]
[1693770399786,0.99859597,1638.3,1638.1,1.6992732]
[1693770400011,0.99859597,1638.3,1638.2,1.06073802]
[1693770400192,0.99859597,1638.3,1638.1,1.6992732]
[1693770400382,0.99859597,1638.3,1638.2,1.06073802]
[1693770400755,0.99859597,1638.3,1638.1,1.6992732]
[1693770400955,0.99859597,1638.3,1638.2,1.06073802]
[1693770401870,0.99859597,1638.3,1638.1,1.6992732]
[1693770413208,2.55159597,1638.3,1638.1,1.6992732]
[1693770421161,2.55159597,1638.3,1638.1,2.1872008]
[1693770421460,0.99859597,1638.3,1638.2,1.06073802]
[1693770421623,0.99859597,1638.3,1638.2,4.14259206]
[1693770421822,0.99859597,1638.3,1638.2,4.78112724]
[1693770426397,0.99859597,1638.3,1638.2,4.14249273]
[1693770426562,0.99859597,1638.3,1638.2,5.34257772]
[1693770432789,0.99859597,1638.3,1638.2,2.26072368]
[1693770432995,0.99859597,1638.3,1638.2,0.55917807]
[1693770433162,0.99859597,1638.3,1638.2,1.06067531]
[1693770440496,0.99859597,1638.3,1638.1,3.15029281]
[1693770440703,0.99859597,1638.3,1638.2,1.06067531]
[1693770445000,0.99859597,1638.3,1638.2,1.70135127]
[1693770445601,0.99859597,1638.3,1638.2,1.06067531]
[1693770445801,0.99859597,1638.3,1638.2,1.68389]
[1693770448517,0.99859597,1638.3,1638.2,2.32456596]
[1693770454187,0.42240631,1638.3,1638.2,2.32456596]
[1693770468059,0.42240631,1638.3,1638.2,1.70135127]
[1693770468271,1.97540631,1638.3,1638.1,0.64067596]
[1693770468551,1.553,1638.2,1637.9,0.64067596]
[1693770468704,1.553,1638.0,1637.9,0.64067596]
[1693770469105,1.553,1638.0,1637.8,2.66254657]
[1693770469305,1.553,1638.1,1637.8,2.66254657]
[1693770469755,0.00478867,1638.0,1637.8,2.66254657]
[1693770470559,0.00478867,1638.0,1637.8,1.70153263]
[1693770470708,0.00478867,1638.0,1637.9,1.06085667]
[1693770471110,0.00478867,1638.0,1637.8,1.70153263]
[1693770471442,0.00478867,1638.0,1637.9,1.06085667]
[1693770472257,0.00478867,1638.0,1637.8,1.70153263]
[1693770475557,0.00478867,1638.0,1637.7,3.9854899]
[1693770475728,0.00478867,1638.0,1637.8,1.06086538]
[1693770480162,0.41728468,1637.9,1637.8,1.06086538]
[1693770480754,0.42206532,1637.9,1637.8,1.06086538]
[1693770484248,0.00478064,1637.9,1637.8,1.06086538]
[1693770492586,0.00478064,1637.9,1637.8,1.06090841]
[1693770494491,0.00478064,1637.9,1637.8,1.06089711]
[1693770498409,0.00478064,1637.9,1637.8,1.45225036]
[1693770499653,0.00478064,1637.9,1637.8,2.09168577]
[1693770507754,1.553,1638.1,1637.8,2.09168577]
[1693770507982,1.553,1638.1,1637.9,1.06089711]
[1693770508745,0.00481396,1638.0,1637.9,1.06089711]
[1693770510592,1.55781396,1638.0,1637.9,1.06089711]
[1693770511689,1.55781396,1638.0,1637.8,1.70033252]
[1693770512574,1.55781396,1638.0,1637.8,2.65948564]
[1693770513579,1.55781396,1638.0,1637.9,1.70033252]
[1693770513966,1.55781396,1638.0,1637.9,0.63943541]
[1693770516602,1.55781396,1638.0,1637.8,2.65948564]
[1693770516781,0.00481396,1638.0,1637.9,1.06089711]
[1693770516985,1.55781396,1638.0,1637.9,1.06089711]
[1693770517176,2.32943363,1638.0,1637.9,1.06089711]
[1693770517377,3.11081396,1638.0,1637.8,1.06089711]
[1693770517586,7.71149073,1637.9,1637.7,0.73943541]
[1693770517881,1.553,1637.8,1637.7,0.1]
[1693770518302,1.553,1637.8,1637.7,1.16102164]
[1693770518816,1.55779791,1637.8,1637.7,1.16102164]
[1693770526575,0.00479791,1637.8,1637.7,1.16102164]
[1693770530209,0.00479791,1637.8,1637.7,0.1]
[1693770538520,0.00479791,1637.8,1637.7,1.16100838]
[1693770538700,1.553,1638.0,1637.7,1.16100838]
[1693770538883,1.553,1638.0,1637.7,0.1]
[1693770539701,0.00480593,1637.9,1637.7,0.1]
[1693770540933,0.00480593,1637.9,1637.7,2.13543041]
[1693770541106,0.00480593,1637.9,1637.8,1.06093615]
[1693770541823,1.553,1638.1,1637.8,1.06093615]
[1693770542735,0.00481396,1638.0,1637.8,1.06093615]
[1693770553740,3.3985,1638.2,1637.8,1.06093615]
[1693770554813,0.00482199,1638.1,1637.8,1.06093615]
[1693770555035,0.00482199,1638.1,1637.8,1.64753919]
[1693770555345,0.00482199,1638.1,1637.8,0.58660304]
[1693770555848,3.3985,1638.2,1637.8,0.58660304]
[1693770556705,0.00482199,1638.1,1637.8,0.58660304]
[1693770557737,3.3985,1638.2,1637.8,0.58660304]
[1693770558751,0.00482199,1638.1,1637.8,0.58660304]
[1693770559752,3.3985,1638.2,1637.8,0.58660304]
[1693770560150,3.3985,1638.2,1637.9,1.06088454]
[1693770560852,0.00482199,1638.1,1637.9,1.06088454]
[1693770561353,0.00482199,1638.1,1637.8,1.22603845]
[1693770561553,0.00482199,1638.1,1637.8,0.58660304]
[1693770561765,3.3985,1638.2,1637.8,0.58660304]
[1693770561909,3.3985,1638.2,1637.9,1.06088541]
[1693770562753,0.00482199,1638.1,1637.9,1.06088541]
[1693770563815,3.3985,1638.2,1637.9,1.06088541]
[1693770564655,0.00482199,1638.1,1637.9,1.06088541]
[1693770565655,3.3985,1638.2,1637.9,1.06088541]
[1693770566832,0.00482199,1638.1,1637.9,1.06088541]
[1693770567755,3.3985,1638.2,1637.9,1.06088541]
[1693770568956,0.00482199,1638.1,1637.9,1.06088541]
[1693770569862,3.3985,1638.2,1637.9,1.06088541]
[1693770570655,0.00482199,1638.1,1637.9,1.06088541]
[1693770571757,3.3985,1638.2,1637.9,1.06088541]
[1693770572759,0.00482199,1638.1,1637.9,1.06088541]
[1693770573767,3.3985,1638.2,1637.9,1.06088541]
[1693770573961,3.73835,1638.2,1637.9,1.06088541]
[1693770574257,3.73835,1638.2,1637.8,0.63943541]
[1693770574451,3.73835,1638.2,1637.8,1.70031913]
[1693770574657,0.00482199,1638.1,1637.8,1.70031913]
[1693770575665,3.3985,1638.2,1637.8,1.70031913]
[1693770576668,1.553,1638.1,1637.8,1.70031913]
[1693770576892,3.40712199,1638.1,1637.8,2.38283224]
[1693770577191,3.40712199,1638.1,1637.9,1.06088372]
[1693770577552,3.40712199,1638.1,1637.8,0.63943541]
[1693770577765,3.40712199,1638.1,1637.8,1.70031943]
[1693770578385,3.40712199,1638.1,1637.8,1.06088402]
[1693770578588,1.553,1637.9,1637.7,2.85303541]
[1693770578793,1.553,1637.9,1637.8,1.06094574]
[1693770579668,1.55780593,1637.9,1637.8,1.06094574]
[1693770593469,0.00480593,1637.9,1637.8,1.06094574]
[1693770594070,0.00480593,1637.9,1637.8,1.63336386]
[1693770594816,1.553,1638.1,1637.8,1.63336386]
[1693770594999,1.553,1638.1,1637.8,0.57241812]
[1693770595813,0.00481396,1638.0,1637.8,0.57241812]
[1693770596103,6.16355212,1638.0,1637.8,0.57241812]
[1693770596265,0.00481396,1638.0,1637.8,0.57241812]
[1693770596704,6.16356924,1638.0,1637.8,0.57241812]
[1693770597209,0.00481396,1638.0,1637.8,0.57241812]
[1693770602441,0.00481396,1638.0,1637.7,4.66323541]
[1693770602736,0.00481396,1638.0,1637.8,1.06093997]
[1693770604339,1.553,1637.9,1637.7,0.1]
[1693770604500,1.553,1637.8,1637.7,0.1]
[1693770604701,1.55761567,1637.8,1637.7,0.1]
[1693770606035,0.00461567,1637.8,1637.7,0.1]
[1693770608543,1.55761567,1637.8,1637.7,0.1]
[1693770615754,0.00461567,1637.8,1637.7,0.1]
[1693770618363,1.55761567,1637.8,1637.7,0.1]
[1693770621069,0.00461567,1637.8,1637.7,0.1]
[1693770621765,1.553,1638.0,1637.7,1.16103469]
[1693770621952,1.553,1638.0,1637.7,0.1]
[1693770622773,0.00458011,1637.9,1637.7,0.1]
[1693770631679,1.55758011,1637.9,1637.7,0.1]
[1693770632674,0.43358513,1637.8,1637.7,0.1]
[1693770632873,0.43358513,1637.8,1637.7,1.16100307]
[1693770633881,0.43944006,1637.8,1637.7,1.16100307]
[1693770635678,0.43944006,1637.8,1637.7,0.1]
[1693770640693,0.43944006,1637.8,1637.7,1.16104616]
[1693770652500,1.99244006,1637.8,1637.7,1.16104616]
[1693770653001,1.99244006,1637.8,1637.7,0.1]
[1693770662396,2.37909407,1637.8,1637.7,0.1]
[1693770663324,1.99244006,1637.8,1637.7,0.1]
[1693770664229,1.55885493,1637.8,1637.7,0.1]
[1693770664609,7.7183502,1637.8,1637.7,0.1]
[1693770666746,1.55885493,1637.8,1637.7,0.1]
[1693770671483,14.22645897,1637.8,1637.7,0.1]
[1693770671773,22.55282387,1637.8,1637.7,0.1]
[1693770673474,16.44707387,1637.8,1637.7,0.1]
[1693770673682,22.55282387,1637.8,1637.4,0.1]
[1693770673845,3.106,1637.5,1637.4,0.1]
[1693770674041,3.4166,1637.5,1637.4,0.1]
[1693770674248,9.52347,1637.5,1637.4,0.1]
[1693770674470,15.63034,1637.5,1637.4,0.1]
[1693770674751,15.63615086,1637.5,1637.4,0.1]
[1693770675154,18.7180049,1637.5,1637.4,0.1]
[1693770675355,19.1980049,1637.5,1637.4,0.1]
[1693770675569,13.0911349,1637.5,1637.4,0.1]
[1693770678794,3.42241086,1637.5,1637.4,0.1]
[1693770679094,1.55881086,1637.5,1637.4,0.1]
[1693770679794,3.11181086,1637.5,1637.4,0.1]
[1693770679975,9.21868086,1637.5,1637.4,0.1]
[1693770685689,12.7805349,1637.5,1637.4,0.1]
[1693770687020,6.6736649,1637.5,1637.4,0.1]
[1693770687199,14.59152281,1637.5,1637.4,0.1]
[1693770687801,8.48465281,1637.5,1637.4,0.1]
[1693770688024,14.59152281,1637.5,1637.4,0.1]
[1693770697453,20.69839281,1637.5,1637.4,0.1]
[1693770697652,27.24049091,1637.5,1637.4,0.1]
[1693770697814,30.24049091,1637.5,1637.4,0.1]
[1693770703637,30.24049091,1637.5,1637.1,0.1]
[1693770703838,1.553,1637.2,1637.1,0.1]
[1693770704765,1.55879239,1637.2,1637.1,0.1]
[1693770706359,1.55879239,1637.2,1637.1,1.16150555]
[1693770706665,1.55879239,1637.2,1637.1,1.16148993]
[1693770710669,1.55879239,1637.2,1637.1,0.1]
[1693770712649,1.55879239,1637.2,1637.1,1.16152123]
[1693770724078,1.55879239,1637.2,1637.1,1.27147836]
[1693770724268,1.55879239,1637.2,1637.1,0.20995713]
[1693770724468,1.55879239,1637.2,1637.1,0.1]
[1693770724794,1.55879239,1637.2,1637.1,0.21141413]
[1693770727499,7.72080547,1637.2,1637.1,0.21141413]
[1693770729619,8.49288602,1637.2,1637.1,0.21141413]
[1693770729906,14.60086602,1637.2,1637.1,0.21141413]
[1693770730109,14.60086602,1637.2,1637.1,0.1]
[1693770732502,15.08086602,1637.2,1637.1,0.1]
[1693770734234,8.97288602,1637.2,1637.1,0.1]
[1693770735343,15.08086602,1637.2,1637.1,0.1]
[1693770736541,15.57649447,1637.2,1637.1,0.1]
[1693770738036,18.65834851,1637.2,1637.1,0.1]
[1693770738950,12.55036851,1637.2,1637.1,0.1]
[1693770740948,24.76632851,1637.2,1637.1,0.1]
[1693770741136,37.01083682,1637.2,1637.1,0.1]
[1693770741643,27.76632851,1637.2,1637.1,0.1]
[1693770742020,37.01085389,1637.2,1637.1,0.1]
[1693770742633,27.76632851,1637.2,1637.1,0.1]
[1693770743216,33.87430851,1637.2,1637.1,0.1]
[1693770743633,21.65834851,1637.2,1637.1,0.1]
[1693770746167,27.76632851,1637.2,1637.1,0.1]
[1693770748164,28.67165037,1637.2,1637.1,0.1]
[1693770749781,21.65834851,1637.2,1637.1,0.1]
[1693770750085,33.87430851,1637.2,1637.1,0.1]
[1693770751555,27.76632851,1637.2,1637.1,0.1]
[1693770751862,15.55036851,1637.2,1637.1,0.1]
[1693770752062,27.76632851,1637.2,1637.1,0.1]
[1693770755592,27.71632851,1637.2,1637.1,0.1]
[1693770765452,0.49562845,1637.2,1637.1,0.1]
[1693770765682,31.963,1637.6,1637.1,0.1]
[1693770765870,1.553,1637.6,1637.1,0.20701566]
[1693770766075,1.553,1637.7,1637.1,0.20701566]
[1693770766388,1.553,1637.7,1637.1,0.53771723]
[1693770766594,1.553,1637.7,1637.2,3.08185404]
[1693770766777,30.41,1637.8,1637.3,1.06124188]
[1693770766778,0.00472091,1637.6,1637.3,1.06124188]
[1693770766975,0.00472091,1637.6,1637.3,4.14309592]
[1693770767202,0.00472091,1637.6,1637.3,3.08185404]
[1693770767412,0.00472091,1637.6,1637.4,0.3081854]
[1693770767988,30.41,1637.8,1637.4,0.3081854]
[1693770768782,0.00457206,1637.7,1637.4,0.3081854]
[1693770769937,1.553,1637.9,1637.4,0.3081854]
[1693770770784,0.00458001,1637.8,1637.4,0.3081854]
[1693770773407,1.91769077,1638.7,1638.2,3.0]
[1693770773708,1.91769077,1638.7,1637.9,3.08185404]
[1693770773709,2.01869077,1639.1,1638.4,6.08185404]
[1693770774010,2.01869077,1639.1,1638.5,3.6081854]
[1693770774228,0.101,1639.1,1638.7,3.0]
[1693770774401,0.101,1639.1,1638.8,3.08185404]
[1693770774791,0.00359932,1639.0,1638.8,3.08185404]
[1693770774990,0.00359932,1639.0,1638.9,0.3081854]
[1693770775451,1e-08,1639.1,1638.9,2.00570088]
[1693770775607,32.064,1639.4,1639.2,0.10459931]
[1693770775794,1.654,1639.4,1639.2,0.10459931]
[1693770777927,0.00335061,1639.3,1639.2,0.10459931]
[1693770778425,0.00335061,1639.3,1639.2,0.21383532]
[1693770778794,1.654,1639.4,1639.2,0.21383532]
[1693770779037,1.654,1639.4,1639.2,0.10459931]
[1693770779753,1.37079229,1639.4,1639.2,0.10459931]
[1693770779898,0.00335061,1639.3,1639.2,0.10459931]
[1693770780705,1.37079229,1639.4,1639.2,0.10459931]
[1693770780906,2.14439694,1639.5,1639.2,0.10459931]
[1693770781131,2.53959663,1639.5,1639.2,0.10459931]
[1693770781937,0.00322594,1639.4,1639.2,0.10459931]
[1693770784778,0.00322594,1639.4,1638.9,0.3081854]
[1693770785080,0.00322594,1639.4,1639.3,0.14969499]
[1693770785446,0.00322594,1639.4,1638.9,4.8611854]
[1693770785651,0.00322594,1639.4,1639.0,3.56797258]
[1693770785854,0.00322594,1639.4,1639.3,0.14969499]
[1693770786178,0.00322594,1639.4,1639.0,3.56797258]
[1693770795399,0.53628586,1639.6,1639.1,0.14993816]
[1693770795598,0.53628586,1639.6,1639.1,3.2317922]